bitfinex/quotes_SOLUSD_20250805
["timestamp","ask_amount","ask_price","bid_price","bid_amount"]
[1754376939208,15.27487945,167.69,167.64,0.68]
[1754376939393,50.20081007,167.68,167.64,6.96081007]
[1754376939897,6.28081007,167.67,167.62,12.24634655]
[1754376940092,6.28081007,167.65,167.6,6.96081007]
[1754376940294,43.18,167.64,167.6,6.96081007]
[1754376940814,49.46081007,167.64,167.6,0.68]
[1754376941211,6.28081007,167.63,167.58,6.28081007]
[1754376941417,43.18,167.62,167.59,0.68]
[1754376942318,43.18,167.62,167.6,0.68]
[1754376943119,43.18,167.62,167.61,0.68]
[1754376944316,43.18,167.62,167.59,12.92761666]
[1754376944635,50.18081007,167.62,167.58,5.96719779]
[1754376944815,50.18081007,167.62,167.58,12.92800786]
[1754376945016,50.18081007,167.62,167.58,6.64719779]
[1754376945517,49.46081007,167.62,167.58,12.24800786]
[1754376945690,43.18,167.62,167.59,0.68]
[1754376946001,43.18,167.62,167.6,0.68]
[1754376946411,43.18,167.62,167.6,6.64657919]
[1754376946632,43.18,167.62,167.61,6.96081007]
[1754376947314,43.18,167.62,167.61,0.68]
[1754376948026,43.9,167.62,167.58,6.28081007]
[1754376948334,43.9,167.62,167.58,6.96081007]
[1754376948623,43.9,167.62,167.58,12.92780993]
[1754376948820,50.18081007,167.62,167.58,6.64699986]
[1754376949120,50.18081007,167.62,167.58,12.92780993]
[1754376949630,43.9,167.62,167.58,12.92780993]
[1754376951304,43.9,167.62,167.58,6.96081007]
[1754376951505,43.9,167.62,167.58,6.28081007]
[1754376951506,0.72,167.61,167.58,6.28081007]
[1754376951723,43.06,167.6,167.57,12.24833383]
[1754376952122,43.06,167.6,167.57,12.92833383]
[1754376952424,43.06,167.6,167.58,0.68]
[1754376952620,43.06,167.6,167.58,6.64711513]
[1754376952831,43.06,167.6,167.58,12.2479252]
[1754376953016,43.06,167.6,167.56,6.70775656]
[1754376953328,43.06,167.6,167.58,6.28081007]
[1754376953725,43.06,167.6,167.56,6.70775656]
[1754376954027,7.00081007,167.59,167.56,0.06]
[1754376954331,43.08,167.58,167.56,0.06]
[1754376954527,43.8,167.58,167.56,0.06]
[1754376957233,43.08,167.58,167.56,0.06]
[1754376958326,43.8,167.58,167.56,0.06]
[1754376958939,43.8,167.58,167.56,6.02801145]
[1754376959118,43.08,167.58,167.56,6.02801145]
[1754376959718,0.68,167.62,167.57,6.96081007]
[1754376959936,43.08,167.61,167.58,0.68]
[1754376960143,6.96081007,167.6,167.56,0.06]
[1754376960338,49.36081007,167.59,167.56,0.06]
[1754376960517,50.04081007,167.59,167.56,0.06]
[1754376960721,0.68,167.58,167.56,0.06]
[1754376961043,49.36081007,167.57,167.56,0.06]
[1754376961227,43.76,167.57,167.56,0.06]
[1754376961426,50.04081007,167.57,167.56,0.06]
[1754376961634,43.08,167.57,167.56,0.06]
[1754376964048,43.08,167.57,167.56,0.74]
[1754376964255,43.08,167.57,167.56,0.06]
[1754376965143,43.76,167.57,167.56,0.06]
[1754376965341,43.08,167.57,167.56,0.06]
[1754376965641,43.76,167.57,167.56,0.06]
[1754376966034,50.04081007,167.57,167.56,0.06]
[1754376966236,56.00846537,167.57,167.56,0.06]
[1754376968549,43.08,167.57,167.56,0.06]
[1754376970459,43.76,167.57,167.56,0.06]
[1754376971344,43.08,167.57,167.56,0.06]
[1754376971541,43.08,167.57,167.56,7.02081007]
[1754376971744,43.08,167.62,167.56,7.02081007]
[1754376972050,43.08,167.62,167.6,6.28081007]
[1754376972251,0.68,167.61,167.58,6.28081007]
[1754376972441,43.08,167.6,167.58,6.28081007]
[1754376973859,43.08,167.6,167.59,6.28081007]
[1754376974063,43.08,167.6,167.59,6.96081007]
[1754376974241,43.08,167.62,167.59,6.96081007]
[1754376974449,43.08,167.62,167.61,6.28081007]
[1754376975743,148.88,167.67,167.62,5.96587519]
[1754376975972,148.88,167.67,167.64,6.28081007]
[1754376976271,43.06,167.66,167.64,6.28081007]
[1754376976441,43.06,167.66,167.64,6.96081007]
[1754376977836,21.19837817,167.69,167.64,6.96081007]
[1754376977837,8.95406938,167.69,167.65,6.96081007]
[1754376978038,8.27406938,167.69,167.68,6.28081007]
[1754376978256,51.33406938,167.69,167.68,6.28081007]
[1754376979452,51.33406938,167.69,167.66,0.68]
[1754376979647,8.27406938,167.69,167.68,6.28081007]
[1754376979847,8.27406938,167.69,167.68,12.92455052]
[1754376981341,0.03,167.7,167.68,12.92455052]
[1754376981540,0.03,167.7,167.69,6.96081007]
[1754376982066,0.03,167.7,167.69,12.92419488]
[1754376983039,0.03,167.7,167.69,6.28081007]
[1754376983479,0.71,167.7,167.64,0.68]
[1754376983766,0.71,167.7,167.67,6.28081007]
[1754376983974,0.68,167.69,167.66,6.28081007]
[1754376985175,0.68,167.68,167.65,6.28081007]
[1754376985348,0.68,167.68,167.64,6.64516344]
[1754376985349,0.68,167.67,167.64,6.28081007]
[1754376985969,43.04,167.68,167.65,6.96081007]
[1754376986756,43.72,167.68,167.64,6.28081007]
[1754376986958,0.68,167.67,167.64,6.28081007]
[1754376987781,43.04,167.68,167.64,6.96081007]
[1754376987969,43.04,167.68,167.65,6.96081007]
[1754376988170,43.04,167.68,167.65,12.92559995]
[1754376988763,43.04,167.69,167.66,6.98081007]
[1754376989073,43.04,167.69,167.67,6.28081007]
[1754376991983,43.04,167.69,167.67,12.24487367]
[1754376992165,0.03,167.7,167.68,6.98081007]
[1754376992365,0.03,167.7,167.69,6.28081007]
[1754376992682,0.03,167.7,167.69,6.98081007]
[1754376992854,0.03,167.7,167.69,0.7]
[1754376993055,0.03,167.7,167.69,6.98081007]
[1754376994304,0.03,167.7,167.69,12.94419488]
[1754376998802,43.02,167.76,167.69,27.85265692]
[1754376998982,43.02,167.76,167.75,6.28081007]
[1754376999298,43.68,167.79,167.75,6.28081007]
[1754376999497,0.66,167.78,167.75,6.28081007]
[1754377001605,0.66,167.77,167.75,6.28081007]
[1754377002609,0.66,167.76,167.73,6.28081007]
[1754377002794,55.90173894,167.76,167.72,6.28081007]
[1754377003109,43.0,167.76,167.74,6.28081007]
[1754377003403,0.66,167.75,167.72,6.28081007]
[1754377003606,0.66,167.75,167.73,6.28081007]
[1754377004505,0.66,167.75,167.7,0.7]
[1754377004506,0.66,167.74,167.72,6.28081007]
[1754377005685,49.62102362,167.76,167.72,6.28081007]
[1754377005899,0.66,167.75,167.72,6.28081007]
[1754377006211,0.66,167.75,167.73,6.28081007]
[1754377006407,48.96102362,167.76,167.73,6.28081007]
[1754377006711,49.62102362,167.76,167.73,6.28081007]
[1754377008299,0.03,167.74,167.73,6.28081007]
[1754377008894,0.03,167.74,167.72,6.28081007]
[1754377009217,0.69,167.74,167.71,6.28081007]
[1754377010410,0.69,167.74,167.72,6.28081007]
[1754377010606,0.03,167.74,167.72,6.28081007]
[1754377011086,49.92081007,167.73,167.68,0.7]
[1754377011285,6.94081007,167.72,167.67,6.34081007]
[1754377011510,42.98,167.73,167.67,6.34081007]
[1754377011511,6.28081007,167.7,167.67,0.06]
[1754377011708,49.26081007,167.7,167.67,0.06]
[1754377012017,43.64,167.7,167.67,0.06]
[1754377013501,0.66,167.69,167.67,0.06]
[1754377013905,48.94309263,167.7,167.67,0.06]
[1754377014310,49.60309263,167.7,167.67,0.06]
[1754377015402,43.64,167.7,167.67,0.06]
[1754377017218,42.98,167.7,167.67,7.04081007]
[1754377018620,42.98,167.7,167.69,6.28081007]
[1754377018927,0.03,167.72,167.69,6.94081007]
[1754377019106,0.03,167.72,167.71,6.28081007]
[1754377019624,0.03,167.72,167.71,12.90348373]
[1754377021393,0.03,167.74,167.73,6.28081007]
[1754377021892,0.03,167.74,167.73,6.94081007]
[1754377023325,0.03,167.74,167.73,12.90277274]
[1754377024418,0.03,167.8,167.74,15.10621557]
[1754377024600,0.03,167.8,167.79,6.28081007]
[1754377025512,0.03,167.8,167.79,12.24064081]
[1754377026947,0.03,167.8,167.79,12.90064081]
[1754377038721,0.03,167.8,167.79,6.61983074]
[1754377038924,0.03,167.8,167.79,12.90064081]
[1754377043101,0.03,167.8,167.79,12.24064081]
[1754377043910,0.03,167.8,167.79,12.90064081]
[1754377045506,0.03,167.82,167.8,15.10621557]
[1754377045699,0.2,167.85,167.82,15.10621557]
[1754377046052,0.2,167.85,167.84,6.28081007]
[1754377046516,0.2,167.85,167.84,6.94081007]
[1754377047616,0.2,167.85,167.84,12.89886536]
[1754377050331,0.2,167.85,167.83,5.95828356]
[1754377050332,0.89,167.85,167.83,5.95828356]
[1754377050512,0.2,167.85,167.83,6.28081007]
[1754377050720,0.69,167.84,167.78,5.96018595]
[1754377050934,6.28081007,167.82,167.78,5.96018595]
[1754377051134,0.69,167.81,167.78,5.96018595]
[1754377051348,6.28081007,167.83,167.78,12.24099602]
[1754377051513,0.69,167.8,167.78,12.24099602]
[1754377052940,6.97081007,167.79,167.75,5.96125186]
[1754377053154,6.97081007,167.78,167.75,5.96125186]
[1754377053330,6.28081007,167.78,167.75,5.96125186]
[1754377053542,0.69,167.77,167.75,5.96125186]
[1754377053834,0.69,167.77,167.74,12.30233003]
[1754377054219,0.69,167.77,167.74,13.00233003]
[1754377054719,0.69,167.77,167.75,6.28081007]
[1754377054922,14.89513822,167.84,167.75,6.28081007]
[1754377054923,5.95805529,167.84,167.75,38.24200107]
[1754377055238,0.2,167.85,167.81,6.28081007]
[1754377055410,0.69,167.84,167.81,6.28081007]
[1754377055609,0.69,167.83,167.81,6.28081007]
[1754377056230,0.69,167.82,167.81,6.28081007]
[1754377057738,0.69,167.84,167.81,5.95912043]
[1754377058034,0.69,167.84,167.82,6.28081007]
[1754377058438,0.2,167.85,167.83,6.28081007]
[1754377058613,0.2,167.85,167.84,6.28081007]
[1754377058945,0.69,167.84,167.82,12.23952268]
[1754377059137,0.2,167.85,167.83,6.28081007]
[1754377059313,0.89,167.85,167.83,6.28081007]
[1754377059515,0.69,167.84,167.83,6.28081007]
[1754377060041,0.2,167.85,167.83,6.28081007]
[1754377060420,0.69,167.84,167.83,6.28081007]
[1754377061237,0.2,167.85,167.83,6.28081007]
[1754377061420,0.89,167.85,167.83,6.28081007]
[1754377061619,0.89,167.85,167.83,12.23913694]
[1754377062216,0.2,167.85,167.83,12.23913694]
[1754377062426,0.2,167.85,167.84,6.98081007]
[1754377062817,0.2,167.85,167.84,12.93886536]
[1754377063138,0.2,167.85,167.84,6.65805529]
[1754377063347,0.2,167.85,167.84,12.93886536]
[1754377068218,0.2,167.85,167.84,34.325891]
[1754377068423,0.2,167.85,167.84,77.165891]
[1754377068622,0.2,167.85,167.84,70.88508093]
[1754377068827,0.2,167.85,167.84,12.93886536]
[1754377069024,0.89,167.85,167.83,5.95832355]
[1754377069238,0.89,167.85,167.83,6.28081007]
[1754377069441,6.97081007,167.84,167.8,0.06]
[1754377069625,6.28081007,167.82,167.8,0.06]
[1754377069949,6.97081007,167.83,167.8,0.06]
[1754377070141,0.69,167.82,167.8,0.06]
[1754377070530,0.69,167.81,167.8,0.06]
[1754377073947,6.97081007,167.83,167.8,0.06]
[1754377074733,0.69,167.82,167.8,0.06]
[1754377080532,0.69,167.82,167.8,6.01947556]
[1754377080932,0.69,167.82,167.8,0.06]
[1754377081664,0.68,167.81,167.8,0.06]
[1754377084262,0.68,167.83,167.8,0.06]
[1754377084857,0.68,167.82,167.8,0.06]
[1754377086261,0.68,167.81,167.8,0.06]
[1754377087381,12.26895866,167.84,167.8,0.06]
[1754377087544,0.68,167.82,167.8,0.06]
[1754377087940,12.26895866,167.84,167.8,0.06]
[1754377088147,0.68,167.81,167.8,0.06]
[1754377088351,0.68,167.83,167.8,0.06]
[1754377088561,0.68,167.82,167.8,0.06]
[1754377089150,12.26895866,167.84,167.8,0.06]
[1754377089361,0.68,167.81,167.8,0.06]
[1754377089572,0.68,167.83,167.8,0.06]
[1754377089872,0.68,167.82,167.8,0.06]
[1754377090870,12.26895866,167.84,167.8,0.06]
[1754377091098,0.68,167.81,167.8,0.06]
[1754377093979,6.96081007,167.83,167.8,0.06]
[1754377094178,0.68,167.83,167.8,0.06]
[1754377094574,0.68,167.82,167.8,0.06]
[1754377094978,0.71,167.82,167.8,0.06]
[1754377097085,0.03,167.82,167.8,0.06]
[1754377097296,0.68,167.81,167.8,0.06]
[1754377097970,0.03,167.82,167.8,0.06]
[1754377098862,0.71,167.82,167.8,0.06]
[1754377100159,0.03,167.82,167.81,6.99081007]
[1754377101588,0.03,167.82,167.81,12.9499305]
[1754377102167,0.03,167.82,167.81,6.66912043]
[1754377102363,0.71,167.82,167.8,0.06]
[1754377102576,0.68,167.81,167.8,6.34081007]
[1754377102778,0.03,167.82,167.8,6.34081007]
[1754377102987,0.71,167.82,167.8,6.34081007]
[1754377103586,0.71,167.82,167.8,12.30027559]
[1754377103896,0.03,167.82,167.8,12.30027559]
[1754377104662,0.03,167.82,167.8,13.01027559]
[1754377105679,0.71,167.82,167.8,6.34081007]
[1754377106771,0.03,167.82,167.8,6.34081007]
[1754377107293,0.03,167.82,167.8,12.30027723]
[1754377107798,0.03,167.82,167.81,6.99081007]
[1754377108881,0.03,167.82,167.81,12.9499305]
[1754377109996,0.03,167.82,167.81,6.66912043]
[1754377110174,0.03,167.82,167.81,12.9499305]
[1754377110789,0.03,167.82,167.81,12.9099305]
[1754377113093,0.03,167.82,167.81,5.95912043]
[1754377113293,0.7,167.82,167.8,0.06]
[1754377113614,0.03,167.82,167.81,6.95081007]
[1754377115287,0.03,167.82,167.81,12.9099305]
[1754377119388,0.03,167.82,167.81,12.2399305]
[1754377120303,0.7,167.82,167.8,12.3001775]
[1754377120505,0.03,167.82,167.8,12.3001775]
[1754377120701,0.67,167.81,167.8,12.3001775]
[1754377121087,0.03,167.82,167.8,6.68936743]
[1754377121299,0.03,167.82,167.8,12.9701775]
[1754377121803,0.03,167.82,167.81,6.95081007]
[1754377123311,0.03,167.82,167.81,12.9099305]
[1754377125090,0.03,167.82,167.81,6.62912043]
[1754377125298,0.03,167.82,167.81,12.9099305]
[1754377126413,0.03,167.82,167.81,6.62912043]
[1754377126612,0.03,167.82,167.81,12.9099305]
[1754377127603,0.7,167.82,167.81,5.95912043]
[1754377128699,0.7,167.82,167.8,6.01947556]
[1754377128897,0.03,167.82,167.8,6.68947556]
[1754377129106,0.03,167.82,167.8,12.97028563]
[1754377131314,0.67,167.81,167.8,0.06]
[1754377131614,0.67,167.81,167.8,6.01947556]
[1754377132028,0.67,167.81,167.8,0.06]
[1754377133215,0.03,167.82,167.8,0.06]
[1754377134910,0.03,167.82,167.8,6.34081007]
[1754377135312,0.7,167.82,167.8,6.34081007]
[1754377135513,0.7,167.82,167.8,0.06]
[1754377136428,0.03,167.82,167.8,12.30014789]
[1754377136722,0.67,167.81,167.8,0.06]
[1754377138822,6.95081007,167.81,167.8,0.06]
[1754377139026,16.86996435,167.81,167.8,0.06]
[1754377139238,59.52996435,167.81,167.8,0.06]
[1754377139413,53.24915428,167.81,167.8,0.06]
[1754377139614,53.57084392,167.81,167.8,0.06]
[1754377140312,47.29003385,167.81,167.8,0.06]
[1754377141528,53.57084392,167.81,167.8,0.06]
[1754377142212,42.66,167.81,167.8,0.06]
[1754377142808,43.33,167.81,167.8,0.06]
[1754377144125,42.66,167.81,167.8,0.06]
[1754377145328,43.33,167.81,167.8,0.06]
[1754377146305,43.33,167.81,167.8,7.03081007]
[1754377146306,42.66,167.81,167.8,7.03081007]
[1754377147321,42.66,167.81,167.8,12.30028563]
[1754377147642,0.03,167.82,167.8,12.99028563]
[1754377147825,0.03,167.82,167.81,6.28081007]
[1754377148008,0.03,167.82,167.81,6.97081007]
[1754377149739,0.03,167.82,167.81,12.9299305]
[1754377151304,0.03,167.82,167.8,12.30015631]
[1754377151814,0.67,167.81,167.8,0.06]
[1754377152830,42.65,167.82,167.8,0.06]
[1754377153133,42.65,167.82,167.81,6.28081007]
[1754377154019,43.32,167.82,167.8,0.06]
[1754377154224,42.65,167.82,167.8,0.06]
[1754377154432,0.67,167.81,167.8,0.06]
[1754377157422,42.65,167.82,167.8,0.06]
[1754377158018,42.65,167.82,167.81,6.28081007]
[1754377158215,42.65,167.82,167.81,6.97081007]
[1754377159051,42.65,167.82,167.8,6.34081007]
[1754377159342,43.32,167.82,167.8,6.34081007]
[1754377159515,0.67,167.81,167.8,0.06]
[1754377160119,42.65,167.82,167.8,0.06]
[1754377160614,43.32,167.82,167.8,6.34081007]
[1754377160934,42.65,167.82,167.8,6.34081007]
[1754377162330,43.32,167.82,167.8,6.34081007]
[1754377162532,42.65,167.82,167.8,6.34081007]
[1754377162728,42.65,167.82,167.8,7.03081007]
[1754377162930,42.65,167.82,167.8,0.75]
[1754377163442,42.65,167.82,167.8,0.06]
[1754377164546,42.65,167.82,167.8,7.03081007]
[1754377164735,0.03,167.82,167.81,6.97081007]
[1754377166230,0.03,167.82,167.81,12.9299305]
[1754377168428,0.03,167.82,167.81,12.2399305]
[1754377168636,0.68,167.82,167.81,6.28081007]
[1754377169038,0.68,167.82,167.8,0.06]
[1754377169351,0.65,167.81,167.8,0.06]
[1754377173150,42.59,167.82,167.8,7.02081007]
[1754377174739,42.59,167.82,167.8,6.34081007]
[1754377175039,43.24,167.82,167.8,0.06]
[1754377176733,42.59,167.82,167.8,0.06]
[1754377177061,42.59,167.82,167.8,0.74]
[1754377177248,42.59,167.82,167.8,7.02081007]
[1754377178237,42.59,167.82,167.81,6.96081007]
[1754377178931,42.59,167.82,167.81,0.68]
[1754377179131,42.59,167.82,167.81,6.96081007]
[1754377180540,0.03,167.82,167.81,6.96081007]
[1754377181749,0.03,167.82,167.81,6.28081007]
[1754377182647,0.03,167.82,167.81,12.9199305]
[1754377184545,0.03,167.82,167.8,0.06]
[1754377184860,0.03,167.82,167.81,6.28081007]
[1754377185276,0.03,167.82,167.8,0.06]
[1754377185448,0.03,167.82,167.8,6.34081007]
[1754377185649,0.68,167.82,167.8,6.34081007]
[1754377185874,0.65,167.81,167.8,0.06]
[1754377186376,0.68,167.82,167.8,0.06]
[1754377186580,0.68,167.82,167.8,6.34081007]
[1754377187868,0.03,167.82,167.8,12.30024934]
[1754377188440,0.68,167.82,167.8,12.30024934]
[1754377188766,0.03,167.82,167.8,12.30024934]
[1754377189768,0.03,167.82,167.8,12.98024934]
[1754377190869,0.03,167.82,167.81,6.96081007]
[1754377193259,0.03,167.82,167.81,6.63912043]
[1754377193462,0.03,167.82,167.81,12.9199305]
[1754377199167,0.03,167.82,167.81,12.2399305]
[1754377199949,0.03,167.82,167.81,12.8999305]
[1754377200160,0.03,167.82,167.81,6.28081007]
[1754377200389,0.03,167.82,167.8,6.01935376]
[1754377200390,6.97081007,167.82,167.8,0.06]
[1754377200587,0.66,167.81,167.8,0.06]
[1754377200882,42.48,167.81,167.8,0.06]
[1754377201197,49.42081007,167.81,167.8,0.06]
[1754377201481,26.0,167.78,167.76,0.92161015]
[1754377201685,52.71701894,167.77,167.76,0.92161015]
[1754377201994,68.48323451,167.77,167.76,0.29161015]
[1754377202153,74.76404458,167.77,167.76,0.29161015]
[1754377202353,74.44377572,167.77,167.76,0.29161015]
[1754377202567,49.42081007,167.77,167.76,0.29161015]
[1754377202774,42.48,167.77,167.76,0.29161015]
[1754377203364,49.32081007,167.77,167.76,0.29161015]
[1754377203577,42.48,167.77,167.76,0.29161015]
[1754377203875,42.48,167.79,167.76,13.19331673]
[1754377204078,42.48,167.79,167.78,6.28081007]
[1754377204595,42.48,167.79,167.77,12.90130598]
[1754377205357,68.46,167.81,167.78,6.28081007]
[1754377205586,42.46,167.81,167.78,12.2408069]
[1754377206897,42.46,167.81,167.8,6.28081007]
[1754377207059,12.271098,167.82,167.8,6.28081007]
[1754377207255,12.271098,167.82,167.81,6.94081007]
[1754377207483,0.03,167.82,167.81,12.8999305]
[1754377213792,0.03,167.82,167.81,6.61912043]
[1754377213973,0.03,167.82,167.81,12.8999305]
[1754377215297,0.59,167.82,167.79,12.24064081]
[1754377216004,0.03,167.82,167.8,6.28081007]
[1754377217070,0.03,167.82,167.8,12.24006787]
[1754377217698,0.03,167.82,167.81,6.94081007]
[1754377219297,0.03,167.82,167.81,12.8999305]
[1754377220403,0.03,167.82,167.81,12.2399305]
[1754377220903,0.03,167.82,167.81,5.95912043]
[1754377221989,0.03,167.82,167.81,12.2399305]
[1754377222505,0.03,167.82,167.81,5.95912043]
[1754377222900,0.03,167.82,167.81,6.28081007]
[1754377224100,0.03,167.82,167.8,5.95947556]
[1754377224281,0.03,167.82,167.81,6.28081007]
[1754377224487,0.03,167.82,167.8,12.24028563]
[1754377226701,0.03,167.82,167.8,5.95947556]
[1754377226902,0.03,167.82,167.81,6.94081007]
[1754377227489,0.03,167.82,167.81,0.66]
[1754377227688,0.03,167.82,167.8,6.28081007]
[1754377228379,0.03,167.82,167.8,6.94081007]
[1754377228905,0.03,167.82,167.8,12.90016072]
[1754377229505,0.03,167.82,167.8,6.61935065]
[1754377229912,0.03,167.82,167.8,5.95935065]
[1754377230888,6.31081007,167.82,167.78,5.96005125]
[1754377231076,0.56,167.81,167.78,5.96005125]
[1754377231904,0.03,167.82,167.79,0.7]
[1754377232107,0.03,167.82,167.81,6.28081007]
[1754377232281,0.03,167.82,167.8,6.98081007]
[1754377232481,0.03,167.82,167.8,6.28081007]
[1754377232677,0.59,167.82,167.78,5.96005125]
[1754377232883,6.87081007,167.82,167.78,6.66005125]
[1754377233093,6.87081007,167.82,167.78,12.94086132]
[1754377233285,14.993243,167.82,167.79,6.98081007]
[1754377233609,0.03,167.82,167.79,6.98081007]
[1754377234311,0.03,167.82,167.79,12.94045708]
[1754377234695,0.03,167.82,167.8,0.7]
[1754377235912,0.03,167.82,167.78,6.98081007]
[1754377236219,0.03,167.82,167.78,6.28081007]
[1754377236394,0.03,167.82,167.79,6.65978934]
[1754377237111,0.03,167.82,167.8,6.98081007]
[1754377237287,0.03,167.84,167.81,6.28081007]
[1754377237490,0.03,167.84,167.79,21.45534926]
[1754377237491,0.03,167.84,167.83,6.28081007]
[1754377237896,0.03,167.84,167.83,6.98081007]
[1754377238515,0.03,167.84,167.83,12.93922036]
[1754377239902,0.03,167.84,167.83,28.04543593]
[1754377240094,0.03,167.84,167.83,34.326246]
[1754377241239,0.03,167.84,167.83,28.04543593]
[1754377242320,0.2,167.85,167.84,15.10621557]
[1754377242509,0.2,167.85,167.84,28.36783571]
[1754377243027,0.2,167.85,167.84,34.325891]
[1754377243894,1e-08,167.85,167.84,34.325891]
[1754377244717,0.2,167.86,167.84,34.325891]
[1754377244916,0.2,167.86,167.85,34.32553603]
[1754377246003,0.2,167.86,167.85,6.65770032]
[1754377246202,0.2,167.86,167.85,6.28081007]
[1754377248909,0.2,167.86,167.85,12.23851039]
[1754377249113,0.2,167.86,167.85,12.93851039]
[1754377249914,0.2,167.86,167.85,34.32553603]
[1754377250110,0.2,167.86,167.85,76.68553603]
[1754377250714,0.2,167.86,167.85,70.40472596]
[1754377250917,0.2,167.86,167.85,54.59851039]
[1754377251236,0.2,167.86,167.85,12.23851039]
[1754377252127,0.2,167.86,167.85,12.93851039]
[1754377252509,0.2,167.86,167.85,6.65770032]
[1754377252706,0.2,167.86,167.85,12.93851039]
[1754377253917,0.2,167.86,167.85,76.66553603]
[1754377255929,0.2,167.86,167.85,164.16553603]
[1754377256315,0.2,167.86,167.85,5.95770032]
[1754377256516,0.2,167.86,167.85,12.23851039]
[1754377257126,0.2,167.86,167.85,12.93851039]
[1754377258711,0.2,167.86,167.85,12.23851039]
[1754377260315,0.2,167.86,167.85,5.95770032]
[1754377260507,0.79,167.86,167.85,12.23851039]
[1754377260817,0.2,167.86,167.85,12.23851039]
[1754377262421,0.2,167.86,167.85,5.95770032]
[1754377262622,0.2,167.86,167.85,12.23851039]
[1754377263235,0.2,167.86,167.85,12.89851039]
[1754377263612,0.2,167.86,167.85,6.61770032]
[1754377263808,0.2,167.86,167.85,12.89851039]
[1754377266051,0.2,167.86,167.85,12.95851039]
[1754377266342,0.2,167.86,167.85,7.00081007]
[1754377266539,0.2,167.86,167.85,70.70783571]
[1754377268021,0.2,167.86,167.85,76.66553603]
[1754377269942,1e-08,167.86,167.85,76.66553603]
[1754377271945,1e-08,167.86,167.85,48.99770032]
[1754377272124,1e-08,167.86,167.85,54.61851039]
[1754377272525,1e-08,167.86,167.85,12.29851039]
[1754377273121,1e-08,167.86,167.85,12.95851039]
[1754377274134,1e-08,167.86,167.85,12.29851039]
[1754377275445,0.59000001,167.86,167.85,12.29851039]
[1754377275646,1e-08,167.86,167.85,12.29851039]
[1754377281754,1e-08,167.86,167.85,12.95851039]
[1754377282934,1e-08,167.86,167.85,55.25851039]
[1754377283747,1e-08,167.86,167.85,54.59851039]
[1754377283951,1e-08,167.86,167.85,6.01770032]
[1754377284549,1e-08,167.86,167.85,6.34081007]
[1754377286302,1e-08,167.86,167.85,7.00081007]
[1754377286440,1e-08,167.86,167.85,12.95851039]
[1754377288362,1e-08,167.86,167.85,12.29851039]
[1754377292258,1e-08,167.86,167.85,0.06]
[1754377292459,1e-08,167.86,167.85,6.34081007]
[1754377293477,1e-08,167.86,167.85,0.06]
[1754377295082,1e-08,167.86,167.85,6.34081007]
[1754377295579,1e-08,167.86,167.85,0.06]
[1754377296297,1e-08,167.86,167.85,6.01770032]
[1754377296961,1e-08,167.86,167.85,0.06]
[1754377298597,6.87081008,167.86,167.85,0.06]
[1754377298903,10.81952512,167.86,167.85,0.06]
[1754377299481,13.20623112,167.86,167.85,0.06]
[1754377300697,40.55060216,167.86,167.85,0.06]
[1754377300869,32.28081007,167.84,167.83,0.06]
[1754377301207,36.22952511,167.84,167.83,0.06]
[1754377301494,57.88674568,167.84,167.83,0.06]